Workbook

Sheet PVC-u cenik
A1: PVC-u – ceník – trubky a tvarovky – VDL | J1: Vyplň
J2: ZDE | L2: Cena celkem | M2: Sleva % | O2: Cena po slevě
J3: ä | L3: =SUM(L8:L1800) -> 0.00 Kč | M3: 0 | O3: =SUM(O8:O1800) -> 0.00 Kč
J4: ä
A5: PVC-u metric – potrubí
A6: Obrázek výrobku | C6: Kod / NR. | D6: Název | E6: Rozměr | F6: PN | G6: Kusů v balení | H6: Váha balení v kg | I6: Objem balení v m3 | J6: obj. ks | K6: Cena za j. | L6: Cena | M6: Sleva % | N6: Po slevě za j. | O6: Cena po slevě
A7: PVC tlak. trubka - bezhrdlá
C8: 2176637 | D8: TR 110x 2,7mm PN 6,3 KIWA krémová 5m | E8: 110 x 2.7 x 5000 | F8: PN 6,3 | K8: 290.00 Kč | L8: =$K8*$J8 -> 0.00 Kč | M8: =$M$3 -> 0 | N8: =$K8-($K8/100*$M8) -> 290.00 Kč | O8: =L8-(L8/100*M8) -> 0.00 Kč
C9: 2187531 | D9: TR 125x 3,1mm PN 6,3 KIWA krémová 5m | E9: 125 x 3.1 x 5000 | F9: PN 6,3 | K9: 378.00 Kč | L9: =$K9*$J9 -> 0.00 Kč | M9: =$M$3 -> 0 | N9: =$K9-($K9/100*$M9) -> 378.00 Kč | O9: =L9-(L9/100*M9) -> 0.00 Kč
C10: 2197537 | D10: TR 160x 4,0mm PN 6,3 KIWA krémová 5m | E10: 160 x 4.0 x 5000 | F10: PN 6,3 | K10: 606.00 Kč | L10: 0.00 Kč | M10: 0 | N10: 606.00 Kč | O10: 0.00 Kč
C11: 3106535 | D11: TR 200x 4,9mm PN 6,3 KIWA krémová 5m | E11: 200 x 4.9 x 5000 | F11: PN 6,3 | K11: 914.00 Kč | L11: 0.00 Kč | M11: 0 | N11: 914.00 Kč | O11: 0.00 Kč
C12: 3126536 | D12: TR 250x 6,2mm PN 6,3 KIWA krémová 5m | E12: 250 x 6.2 x 5000 | F12: PN 6,3 | K12: 1,569.00 Kč | L12: 0.00 Kč | M12: 0 | N12: 1,569.00 Kč | O12: 0.00 Kč
C13: 3146537 | D13: TR 315x 7,7mm PN 6,3 KIWA krémová 5m | E13: 315 x 7.7 x 5000 | F13: PN 6,3 | K13: 2,347.00 Kč | L13: 0.00 Kč | M13: 0 | N13: 2,347.00 Kč | O13: 0.00 Kč
C15: 2157837N | D15: TR 63x 2,5mm PN 8 KIWA šedá 5m | E15: 63 x 2.5 x 5000 | F15: PN 8 | K15: 172.00 Kč | L15: 0.00 Kč | M15: 0 | N15: 172.00 Kč | O15: 0.00 Kč
C16: 2164035N | D16: TR 75x 2,9mm PN 8 KIWA šedá 5m | E16: 75 x 2.9 x 5000 | F16: PN 8 | K16: 212.00 Kč | L16: 0.00 Kč | M16: 0 | N16: 212.00 Kč | O16: 0.00 Kč
C17: 2128632N | D17: TR 90x 3,5mm PN 8 KIWA šedá 5m | E17: 90 x 3.5 x 5000 | F17: PN 8 | K17: 301.00 Kč | L17: 0.00 Kč | M17: 0 | N17: 301.00 Kč | O17: 0.00 Kč
C18: 2176238N | D18: TR 110x 3,4mm PN 8 KIWA šedá 5m | E18: 110 x 3.4 x 5000 | F18: PN 8 | K18: 351.00 Kč | L18: 0.00 Kč | M18: 0 | N18: 351.00 Kč | O18: 0.00 Kč
C19: 2186233N | D19: TR 125x 3,9mm PN 8 KIWA šedá 5m | E19: 125 x 3.9 x 5000 | F19: PN 8 | K19: 445.00 Kč | L19: 0.00 Kč | M19: 0 | N19: 445.00 Kč | O19: 0.00 Kč
C20: 2196239N | D20: TR 160x 4,9mm PN 8 KIWA šedá 5m | E20: 160 x 4.9 x 5000 | F20: PN 8 | K20: 742.00 Kč | L20: 0.00 Kč | M20: 0 | N20: 742.00 Kč | O20: 0.00 Kč
C21: 3108430N | D21: TR 200x 6,2mm PN 8 KIWA šedá 5m | E21: 200 x 6.2 x 5000 | F21: PN 8 | K21: 1,171.00 Kč | L21: 0.00 Kč | M21: 0 | N21: 1,171.00 Kč | O21: 0.00 Kč
C22: 3128585N | D22: TR 250x 7,7mm PN 8 KIWA krémová 5m | E22: 250 x 7.7 x 5000 | F22: PN 8 | K22: 1,813.00 Kč | L22: 0.00 Kč | M22: 0 | N22: 1,813.00 Kč | O22: 0.00 Kč
C23: 3128431N | D23: TR 250x 7,7mm PN 8 KIWA šedá 5m | E23: 250 x 7.7 x 5000 | F23: PN 8 | K23: 1,950.00 Kč | L23: 0.00 Kč | M23: 0 | N23: 1,950.00 Kč | O23: 0.00 Kč
C24: 3148530N | D24: TR 315x 9,7mm PN 8 KIWA krémová 5m | E24: 315 x 9.7 x 5000 | F24: PN 8 | K24: 2,915.00 Kč | L24: 0.00 Kč | M24: 0 | N24: 2,915.00 Kč | O24: 0.00 Kč
C25: 3148432N | D25: TR 315x 9,7mm PN 8 KIWA šedá 5m | E25: 315 x 9.7 x 5000 | F25: PN 8 | K25: 2,890.00 Kč | L25: 0.00 Kč | M25: 0 | N25: 2,890.00 Kč | O25: 0.00 Kč
C26: 3159532N | D26: TR 400x 12,3mm PN 8 KIWA krémová 5m | E26: 400 x 12.3 x 5000 | F26: PN 8 | K26: 4,705.00 Kč | L26: 0.00 Kč | M26: 0 | N26: 4,705.00 Kč | O26: 0.00 Kč
C27: 3159435N | D27: TR 400x 12,3mm PN 8 KIWA šedá 5m | E27: 400 x 12.3 x 5000 | F27: PN 8 | K27: 4,665.00 Kč | L27: 0.00 Kč | M27: 0 | N27: 4,665.00 Kč | O27: 0.00 Kč
C28: 3159869N | D28: TR 500x 15,3mm PN 8 KIWA krémová 5m | E28: 500 x 15.3 x 5000 | F28: PN 8 | K28: 7,278.00 Kč | L28: 0.00 Kč | M28: 0 | N28: 7,278.00 Kč | O28: 0.00 Kč
C29: 3159440N | D29: TR 500x 15,3mm PN 8 KIWA šedá 5m | E29: 500 x 15.3 x 5000 | F29: PN 8 | K29: 7,208.00 Kč | L29: 0.00 Kč | M29: 0 | N29: 7,208.00 Kč | O29: 0.00 Kč
C30: 3159900N | D30: TR 630x 19,3mm PN 8 KIWA šedá 5m | E30: 630 x 19.3 x5000 | F30: PN 8 | K30: 11,653.00 Kč | L30: 0.00 Kč | M30: 0 | N30: 11,653.00 Kč | O30: 0.00 Kč
C32: 2134233 | D32: TR 32x 1,6mm PN 10 KIWA šedá 5m | E32: 32 x 1.6 x 5000 | F32: PN 10 | K32: 61.00 Kč | L32: 0.00 Kč | M32: 0 | N32: 61.00 Kč | O32: 0.00 Kč
C33: 2144239 | D33: TR 40x 1,9mm PN 10 KIWA šedá 5m | E33: 40 x 1.9 x 5000 | F33: PN 10 | K33: 87.00 Kč | L33: 0.00 Kč | M33: 0 | N33: 87.00 Kč | O33: 0.00 Kč
C34: 2153939 | D34: TR 50x 2,4mm PN 10 KIWA šedá 5m | E34: 50 x 2.4 x 5000 | F34: PN 10 | K34: 134.00 Kč | L34: 0.00 Kč | M34: 0 | N34: 134.00 Kč | O34: 0.00 Kč
C35: 2157934 | D35: TR 63x 3,0mm PN 10 KIWA šedá 5m | E35: 63 x 3.0 x 5000 | F35: PN 10 | K35: 199.00 Kč | L35: 0.00 Kč | M35: 0 | N35: 199.00 Kč | O35: 0.00 Kč
C36: 2164132 | D36: TR 75x 3,6mm PN 10 KIWA šedá 5m | E36: 75 x 3.6 x 5000 | F36: PN 10 | K36: 258.00 Kč | L36: 0.00 Kč | M36: 0 | N36: 258.00 Kč | O36: 0.00 Kč
C37: 2128730 | D37: TR 90x 4,3mm PN 10 KIWA šedá 5m | E37: 90 x 4.3 x 5000 | F37: PN 10 | K37: 358.00 Kč | L37: 0.00 Kč | M37: 0 | N37: 358.00 Kč | O37: 0.00 Kč
C38: 2178737 | D38: TR 110x 4,2mm PN 10 KIWA šedá 5m | E38: 110 x 4.2 x 5000 | F38: PN 10 | K38: 422.00 Kč | L38: 0.00 Kč | M38: 0 | N38: 422.00 Kč | O38: 0.00 Kč
C39: 2178834 | D39: TR 125x 4,8mm PN 10 KIWA šedá 5m | E39: 125 x 4.8 x 5000 | F39: PN 10 | K39: 546.00 Kč | L39: 0.00 Kč | M39: 0 | N39: 546.00 Kč | O39: 0.00 Kč
C40: 2188830 | D40: TR 160x 6,2mm PN 10 KIWA šedá 5m | E40: 160 x 6.2 x 5000 | F40: PN 10 | K40: 925.00 Kč | L40: 0.00 Kč | M40: 0 | N40: 925.00 Kč | O40: 0.00 Kč
C41: 3109232 | D41: TR 200x 7,7mm PN 10 KIWA šedá 5m | E41: 200 x 7.7 x 5000 | F41: PN 10 | K41: 1,414.00 Kč | L41: 0.00 Kč | M41: 0 | N41: 1,414.00 Kč | O41: 0.00 Kč
C42: 3129233 | D42: TR 250x 9,6mm PN 10 KIWA šedá 5m | E42: 250 x 9.6 x 5000 | F42: PN 10 | K42: 2,292.00 Kč | L42: 0.00 Kč | M42: 0 | N42: 2,292.00 Kč | O42: 0.00 Kč
C43: 3159833 | D43: TR 315x12,1mm PN 10 KIWA krémová 5m | E43: 315 x 12.1 x 5000 | F43: PN 10 | K43: 3,585.00 Kč | L43: 0.00 Kč | M43: 0 | N43: 3,585.00 Kč | O43: 0.00 Kč
C44: 3171531 | D44: TR 400x15,3mm PN 10 KIWA krémová 5m | E44: 400 x 15.3 x 5000 | F44: PN 10 | K44: 5,745.00 Kč | L44: 0.00 Kč | M44: 0 | N44: 5,745.00 Kč | O44: 0.00 Kč
C46: 2130530 | D46: TR 25x 1,5mm PN 12,5 KIWA šedá 5m | E46: 25 x 1.5 x 5000 | F46: PN 12,5 | K46: 58.00 Kč | L46: 0.00 Kč | M46: 0 | N46: 58.00 Kč | O46: 0.00 Kč
C47: 2134330 | D47: TR 32x 1,9mm PN 12,5 KIWA šedá 5m | E47: 32 x 1.9 x 5000 | F47: PN 12,5 | K47: 70.00 Kč | L47: 0.00 Kč | M47: 0 | N47: 70.00 Kč | O47: 0.00 Kč
C48: 2144336 | D48: TR 40x 2,4mm PN 12,5 KIWA šedá 5m | E48: 40 x 2.4 x 5000 | F48: PN 12,5 | K48: 121.00 Kč | L48: 0.00 Kč | M48: 0 | N48: 121.00 Kč | O48: 0.00 Kč
C49: 2154030 | D49: TR 50x 3,0mm PN 12,5 KIWA šedá 5m | E49: 50 x 3.0 x 5000 | F49: PN 12,5 | K49: 159.00 Kč | L49: 0.00 Kč | M49: 0 | N49: 159.00 Kč | O49: 0.00 Kč
C50: 2158035N | D50: TR 63x 3,8mm PN 12,5 KIWA šedá 5m | E50: 63 x 3.8 x 5000 | F50: PN 12,5 | K50: 245.00 Kč | L50: 0.00 Kč | M50: 0 | N50: 245.00 Kč | O50: 0.00 Kč
C51: 2164230N | D51: TR 75x 4,5mm PN 12,5 KIWA šedá 5m | E51: 75 x 4.5 x 5000 | F51: PN 12,5 | K51: 309.00 Kč | L51: 0.00 Kč | M51: 0 | N51: 309.00 Kč | O51: 0.00 Kč
C52: 2178630 | D52: TR 110x 5,3mm PN 12,5 KIWA šedá 5m | E52: 110 x 5.3 x 5000 | F52: PN 12,5 | K52: 516.00 Kč | L52: 0.00 Kč | M52: 0 | N52: 516.00 Kč | O52: 0.00 Kč
C53: 2188732 | D53: TR 125x 6,0mm PN 12,5 KIWA šedá 5m | E53: 125 x 6.0 x 5000 | F53: PN 12,5 | K53: 681.00 Kč | L53: 0.00 Kč | M53: 0 | N53: 681.00 Kč | O53: 0.00 Kč
C54: 2199637 | D54: TR 160x 7,7mm PN 12,5 KIWA šedá 5m | E54: 160 x 7.7 x 5000 | F54: PN 12,5 | K54: 1,101.00 Kč | L54: 0.00 Kč | M54: 0 | N54: 1,101.00 Kč | O54: 0.00 Kč
C56: 2113139 | D56: TR 16x 1,5mm PN 16 KIWA šedá 5m | E56: 16 x 1.5 x 5000 | F56: PN 16 | K56: 36.00 Kč | L56: 0.00 Kč | M56: 0 | N56: 36.00 Kč | O56: 0.00 Kč
C57: 2129639 | D57: TR 20x 1,5mm PN 16 KIWA šedá 5m | E57: 20 x 1.5 x 5000 | F57: PN 16 | K57: 43.00 Kč | L57: 0.00 Kč | M57: 0 | N57: 43.00 Kč | O57: 0.00 Kč
C58: 2130637 | D58: TR 25x 1,9mm PN 16 KIWA šedá 5m | E58: 25 x 1.9 x 5000 | F58: PN 16 | K58: 65.00 Kč | L58: 0.00 Kč | M58: 0 | N58: 65.00 Kč | O58: 0.00 Kč
C59: 2134438 | D59: TR 32x 2,4mm PN 16 KIWA šedá 5m | E59: 32 x 2.4 x 5000 | F59: PN 16 | K59: 81.00 Kč | L59: 0.00 Kč | M59: 0 | N59: 81.00 Kč | O59: 0.00 Kč
C60: 2144433 | D60: TR 40x 3,0mm PN 16 KIWA šedá 5m | E60: 40 x 3.0 x 5000 | F60: PN 16 | K60: 125.00 Kč | L60: 0.00 Kč | M60: 0 | N60: 125.00 Kč | O60: 0.00 Kč
C61: 2154137 | D61: TR 50x 3,7mm PN 16 KIWA šedá 5m | E61: 50 x 3.7 x 5000 | F61: PN 16 | K61: 190.00 Kč | L61: 0.00 Kč | M61: 0 | N61: 190.00 Kč | O61: 0.00 Kč
C62: 2158245 | D62: TR 63x 4,7mm PN 16 KIWA šedá 5m | E62: 63 x 4.7 x 5000 | F62: PN 16 | K62: 294.00 Kč | L62: 0.00 Kč | M62: 0 | N62: 294.00 Kč | O62: 0.00 Kč
C63: 2164434N | D63: TR 75x 5,6mm PN 16 KIWA šedá 5m | E63: 75 x 5.4 x 5000 | F63: PN 16 | K63: 386.00 Kč | L63: 0.00 Kč | M63: 0 | N63: 386.00 Kč | O63: 0.00 Kč
C64: 2125730N | D64: TR 90x 6,7mm PN 16 KIWA šedá 5m | E64: 90 x 6.7 x 5000 | F64: PN 16 | K64: 522.00 Kč | L64: 0.00 Kč | M64: 0 | N64: 522.00 Kč | O64: 0.00 Kč
C65: 2178338 | D65: TR 110x 6,6mm PN 16 KIWA šedá 5m | E65: 110 x 6.6 x 5000 | F65: PN 16 | K65: 626.00 Kč | L65: 0.00 Kč | M65: 0 | N65: 626.00 Kč | O65: 0.00 Kč
C67: F082025 | D67: TR flexibilní tlak. PVC 25x2,5 - 25m/bal. PN7 | F67: PN 7 | K67: 192.00 Kč | L67: 0.00 Kč | M67: 0 | N67: 192.00 Kč | O67: 0.00 Kč
C68: F082032 | D68: TR flexibilní tlak. PVC 32x3,0 - 25m/bal. PN5 | F68: PN 5 | K68: 181.00 Kč | L68: 0.00 Kč | M68: 0 | N68: 181.00 Kč | O68: 0.00 Kč
C69: F082040 | D69: TR flexibilní tlak. PVC 40x3,0 - 25m/bal. PN5 | F69: PN 5 | K69: 245.00 Kč | L69: 0.00 Kč | M69: 0 | N69: 245.00 Kč | O69: 0.00 Kč
C70: F082063 | D70: TR flexibilní tlak. PVC 63x4,0 - 25m/bal. PN5 | F70: PN 5 | K70: 431.00 Kč | L70: 0.00 Kč | M70: 0 | N70: 431.00 Kč | O70: 0.00 Kč
C71: F082075 | D71: TR flexibilní tlak. PVC 75x5,0 - 25m/bal. PN4 | F71: PN 4 | K71: 745.00 Kč | L71: 0.00 Kč | M71: 0 | N71: 745.00 Kč | O71: 0.00 Kč
C72: F082090 | D72: TR flexibilní tlak. PVC 90x5,0 - 25m/bal. PN4 | F72: PN 4 | K72: 907.00 Kč | L72: 0.00 Kč | M72: 0 | N72: 907.00 Kč | O72: 0.00 Kč
A74: PVC tlak. oblouk 11°15´ - PN 10
C75: 3645002 | D75: PVC tlak. oblouk 11°15´ - PN 10 | E75: 50 | F75: PN 10 | K75: 746.00 Kč | L75: =$K75*$J75 -> 0.00 Kč | M75: =$M$3 -> 0 | N75: =$K75-($K75/100*$M75) -> 746.00 Kč | O75: =L75-(L75/100*M75) -> 0.00 Kč
C76: 3637700 | D76: PVC tlak. oblouk 11°15´ - PN 10 | E76: 63 | F76: PN 10 | K76: 844.00 Kč | L76: 0.00 Kč | M76: 0 | N76: 844.00 Kč | O76: 0.00 Kč
C77: 3638405 | D77: PVC tlak. oblouk 11°15´ - PN 10 | E77: 75 | F77: PN 10 | K77: 915.00 Kč | L77: 0.00 Kč | M77: 0 | N77: 915.00 Kč | O77: 0.00 Kč
C78: 3639100 | D78: PVC tlak. oblouk 11°15´ - PN 10 | E78: 90 | F78: PN 10 | K78: 152.00 Kč | L78: 0.00 Kč | M78: 0 | N78: 152.00 Kč | O78: 0.00 Kč
C79: 3639800 | D79: PVC tlak. oblouk 11°15´ - PN 10 | E79: 110 | F79: PN 10 | K79: 1,161.00 Kč | L79: 0.00 Kč | M79: 0 | N79: 1,161.00 Kč | O79: 0.00 Kč
C80: 3640507 | D80: PVC tlak. oblouk 11°15´ - PN 10 | E80: 125 | F80: PN 10 | K80: 1,767.00 Kč | L80: 0.00 Kč | M80: 0 | N80: 1,767.00 Kč | O80: 0.00 Kč
C81: 3641201 | D81: PVC tlak. oblouk 11°15´ - PN 10 | E81: 160 | F81: PN 10 | K81: 2,746.00 Kč | L81: 0.00 Kč | M81: 0 | N81: 2,746.00 Kč | O81: 0.00 Kč
C82: 3641902 | D82: PVC tlak. oblouk 11°15´ - PN 10 | E82: 200 | F82: PN 10 | K82: 3,917.00 Kč | L82: 0.00 Kč | M82: 0 | N82: 3,917.00 Kč | O82: 0.00 Kč
C83: 3642607 | D83: PVC tlak. oblouk 11°15´ - PN 10 | E83: 250 | F83: PN 10 | K83: 11,441.00 Kč | L83: 0.00 Kč | M83: 0 | N83: 11,441.00 Kč | O83: 0.00 Kč
C84: 3643301 | D84: PVC tlak. oblouk 11°15´ - PN 10 | E84: 315 | F84: PN 10 | K84: 14,095.00 Kč | L84: 0.00 Kč | M84: 0 | N84: 14,095.00 Kč | O84: 0.00 Kč
C85: 3644006 | D85: PVC tlak. oblouk 11°15´ - PN 10 | E85: 400 | F85: PN 10 | K85: 21,815.00 Kč | L85: 0.00 Kč | M85: 0 | N85: 21,815.00 Kč | O85: 0.00 Kč
A86: PVC tlak. oblouk 22°30´ - PN 10
C87: 3645100 | D87: PVC tlak. oblouk 22°30´ - PN 10 | E87: 50 | F87: PN 10 | K87: 664.00 Kč | L87: 0.00 Kč | M87: 0 | N87: 664.00 Kč | O87: 0.00 Kč
C88: 3637808 | D88: PVC tlak. oblouk 22°30´ - PN 10 | E88: 63 | F88: PN 10 | K88: 850.00 Kč | L88: 0.00 Kč | M88: 0 | N88: 850.00 Kč | O88: 0.00 Kč
C89: 3638502 | D89: PVC tlak. oblouk 22°30´ - PN 10 | E89: 75 | F89: PN 10 | K89: 850.00 Kč | L89: 0.00 Kč | M89: 0 | N89: 850.00 Kč | O89: 0.00 Kč
C90: 3639207 | D90: PVC tlak. oblouk 22°30´ - PN 10 | E90: 90 | F90: PN 10 | K90: 1,099.00 Kč | L90: 0.00 Kč | M90: 0 | N90: 1,099.00 Kč | O90: 0.00 Kč
C91: 3639908 | D91: PVC tlak. oblouk 22°30´ - PN 10 | E91: 110 | F91: PN 10 | K91: 1,146.00 Kč | L91: 0.00 Kč | M91: 0 | N91: 1,146.00 Kč | O91: 0.00 Kč
C92: 3640604 | D92: PVC tlak. oblouk 22°30´ - PN 10 | E92: 125 | F92: PN 10 | K92: 1,617.00 Kč | L92: 0.00 Kč | M92: 0 | N92: 1,617.00 Kč | O92: 0.00 Kč
C93: 3641309 | D93: PVC tlak. oblouk 22°30´ - PN 10 | E93: 160 | F93: PN 10 | K93: 2,518.00 Kč | L93: 0.00 Kč | M93: 0 | N93: 2,518.00 Kč | O93: 0.00 Kč
C94: 3642003 | D94: PVC tlak. oblouk 22°30´ - PN 10 | E94: 200 | F94: PN 10 | K94: 3,896.00 Kč | L94: 0.00 Kč | M94: 0 | N94: 3,896.00 Kč | O94: 0.00 Kč
C95: 3642704 | D95: PVC tlak. oblouk 22°30´ - PN 10 | E95: 250 | F95: PN 10 | K95: 12,412.00 Kč | L95: 0.00 Kč | M95: 0 | N95: 12,412.00 Kč | O95: 0.00 Kč
C96: 3643409 | D96: PVC tlak. oblouk 22°30´ - PN 10 | E96: 315 | F96: PN 10 | K96: 14,598.00 Kč | L96: 0.00 Kč | M96: 0 | N96: 14,598.00 Kč | O96: 0.00 Kč
C97: 3644103 | D97: PVC tlak. oblouk 22°30´ - PN 10 | E97: 400 | F97: PN 10 | K97: 22,922.00 Kč | L97: 0.00 Kč | M97: 0 | N97: 22,922.00 Kč | O97: 0.00 Kč
A98: PVC tlak. oblouk 30° - PN 10
C99: 3645207 | D99: PVC tlak. oblouk 30° - PN 10 | E99: 50 | F99: PN 10 | K99: 581.00 Kč | L99: 0.00 Kč | M99: 0 | N99: 581.00 Kč | O99: 0.00 Kč
C100: 3637905 | D100: PVC tlak. oblouk 30° - PN 10 | E100: 63 | F100: PN 10 | K100: 752.00 Kč | L100: 0.00 Kč | M100: 0 | N100: 752.00 Kč | O100: 0.00 Kč
C101: 3638600 | D101: PVC tlak. oblouk 30° - PN 10 | E101: 75 | F101: PN 10 | K101: 818.00 Kč | L101: 0.00 Kč | M101: 0 | N101: 818.00 Kč | O101: 0.00 Kč
C102: 3639304 | D102: PVC tlak. oblouk 30° - PN 10 | E102: 90 | F102: PN 10 | K102: 1,099.00 Kč | L102: 0.00 Kč | M102: 0 | N102: 1,099.00 Kč | O102: 0.00 Kč
C103: 3640000 | D103: PVC tlak. oblouk 30° - PN 10 | E103: 110 | F103: PN 10 | K103: 1,223.00 Kč | L103: 0.00 Kč | M103: 0 | N103: 1,223.00 Kč | O103: 0.00 Kč
C104: 3640701 | D104: PVC tlak. oblouk 30° - PN 10 | E104: 125 | F104: PN 10 | K104: 1,544.00 Kč | L104: 0.00 Kč | M104: 0 | N104: 1,544.00 Kč | O104: 0.00 Kč
C105: 3641406 | D105: PVC tlak. oblouk 30° - PN 10 | E105: 160 | F105: PN 10 | K105: 2,321.00 Kč | L105: 0.00 Kč | M105: 0 | N105: 2,321.00 Kč | O105: 0.00 Kč
C106: 3642100 | D106: PVC tlak. oblouk 30° - PN 10 | E106: 200 | F106: PN 10 | K106: 3,927.00 Kč | L106: 0.00 Kč | M106: 0 | N106: 3,927.00 Kč | O106: 0.00 Kč
C107: 3642801 | D107: PVC tlak. oblouk 30° - PN 10 | E107: 250 | F107: PN 10 | K107: 12,111.00 Kč | L107: =$K107*$J107 -> 0.00 Kč | M107: =$M$3 -> 0 | N107: =$K107-($K107/100*$M107) -> 12,111.00 Kč | O107: =L107-(L107/100*M107) -> 0.00 Kč
C108: 3643506 | D108: PVC tlak. oblouk 30° - PN 10 | E108: 315 | F108: PN 10 | K108: 14,297.00 Kč | L108: 0.00 Kč | M108: 0 | N108: 14,297.00 Kč | O108: 0.00 Kč
C109: 3644200 | D109: PVC tlak. oblouk 30° - PN 10 | E109: 400 | F109: PN 10 | K109: 24,502.00 Kč | L109: 0.00 Kč | M109: 0 | N109: 24,502.00 Kč | O109: 0.00 Kč
A110: PVC tlak. oblouk 45° - PN 10
C111: 3645304 | D111: PVC tlak. oblouk 45° - PN 10 | E111: 50 | F111: PN 10 | K111: 560.00 Kč | L111: 0.00 Kč | M111: 0 | N111: 560.00 Kč | O111: 0.00 Kč
C112: 3638006 | D112: PVC tlak. oblouk 45° - PN 10 | E112: 63 | F112: PN 10 | K112: 846.00 Kč | L112: 0.00 Kč | M112: 0 | N112: 846.00 Kč | O112: 0.00 Kč
C113: 3638707 | D113: PVC tlak. oblouk 45° - PN 10 | E113: 75 | F113: PN 10 | K113: 918.00 Kč | L113: 0.00 Kč | M113: 0 | N113: 918.00 Kč | O113: 0.00 Kč
C114: 3639401 | D114: PVC tlak. oblouk 45° - PN 10 | E114: 90 | F114: PN 10 | K114: 1,088.00 Kč | L114: 0.00 Kč | M114: 0 | N114: 1,088.00 Kč | O114: 0.00 Kč
C115: 3640108 | D115: PVC tlak. oblouk 45° - PN 10 | E115: 110 | F115: PN 10 | K115: 1,233.00 Kč | L115: 0.00 Kč | M115: 0 | N115: 1,233.00 Kč | O115: 0.00 Kč
C116: 3640809 | D116: PVC tlak. oblouk 45° - PN 10 | E116: 125 | F116: PN 10 | K116: 1,456.00 Kč | L116: 0.00 Kč | M116: 0 | N116: 1,456.00 Kč | O116: 0.00 Kč
C117: 3641503 | D117: PVC tlak. oblouk 45° - PN 10 | E117: 160 | F117: PN 10 | K117: 2,445.00 Kč | L117: 0.00 Kč | M117: 0 | N117: 2,445.00 Kč | O117: 0.00 Kč
C118: 3642208 | D118: PVC tlak. oblouk 45° - PN 10 | E118: 200 | F118: PN 10 | K118: 3,927.00 Kč | L118: 0.00 Kč | M118: 0 | N118: 3,927.00 Kč | O118: 0.00 Kč
C119: 3642909 | D119: PVC tlak. oblouk 45° - PN 10 | E119: 250 | F119: PN 10 | K119: 14,049.00 Kč | L119: 0.00 Kč | M119: 0 | N119: 14,049.00 Kč | O119: 0.00 Kč
C120: 3643603 | D120: PVC tlak. oblouk 45° - PN 10 | E120: 315 | F120: PN 10 | K120: 16,563.00 Kč | L120: 0.00 Kč | M120: 0 | N120: 16,563.00 Kč | O120: 0.00 Kč
C121: 3644308 | D121: PVC tlak. oblouk 45° - PN 10 | E121: 400 | F121: PN 10 | K121: 27,092.00 Kč | L121: 0.00 Kč | M121: 0 | N121: 27,092.00 Kč | O121: 0.00 Kč
A122: PVC tlak. oblouk 60° - PN 10
C123: 3645401 | D123: PVC tlak. oblouk 60° - PN 10 | E123: 50 | F123: PN 10 | K123: 508.00 Kč | L123: 0.00 Kč | M123: 0 | N123: 508.00 Kč | O123: 0.00 Kč
C124: 3638103 | D124: PVC tlak. oblouk 60° - PN 10 | E124: 63 | F124: PN 10 | K124: 601.00 Kč | L124: 0.00 Kč | M124: 0 | N124: 601.00 Kč | O124: 0.00 Kč
C125: 3638804 | D125: PVC tlak. oblouk 60° - PN 10 | E125: 75 | F125: PN 10 | K125: 784.00 Kč | L125: 0.00 Kč | M125: 0 | N125: 784.00 Kč | O125: 0.00 Kč
K126: 0.00 Kč
C127: 3640205 | D127: PVC tlak. oblouk 60° - PN 10 | E127: 110 | F127: PN 10 | K127: 1,337.00 Kč | L127: =$K128*$J127 -> 0.00 Kč | M127: 0 | N127: 1,337.00 Kč | O127: 0.00 Kč
C128: 3640906 | D128: PVC tlak. oblouk 60° - PN 10 | E128: 125 | F128: PN 10 | K128: 1,788.00 Kč | L128: 0.00 Kč | M128: 0 | N128: 1,788.00 Kč | O128: 0.00 Kč
C129: 3641600 | D129: PVC tlak. oblouk 60° - PN 10 | E129: 160 | F129: PN 10 | K129: 2,578.00 Kč | L129: 0.00 Kč | M129: 0 | N129: 2,578.00 Kč | O129: 0.00 Kč
C130: 3642305 | D130: PVC tlak. oblouk 60° - PN 10 | E130: 200 | F130: PN 10 | K130: 4,818.00 Kč | L130: 0.00 Kč | M130: 0 | N130: 4,818.00 Kč | O130: 0.00 Kč
C131: 3643000 | D131: PVC tlak. oblouk 60° - PN 10 | E131: 250 | F131: PN 10 | K131: 14,763.00 Kč | L131: 0.00 Kč | M131: 0 | N131: 14,763.00 Kč | O131: 0.00 Kč
C132: 3643700 | D132: PVC tlak. oblouk 60° - PN 10 | E132: 315 | F132: PN 10 | K132: 18,804.00 Kč | L132: 0.00 Kč | M132: 0 | N132: 18,804.00 Kč | O132: 0.00 Kč
C133: 3644405 | D133: PVC tlak. oblouk 60° - PN 10 | E133: 400 | F133: PN 10 | K133: 28,027.00 Kč | L133: 0.00 Kč | M133: 0 | N133: 28,027.00 Kč | O133: 0.00 Kč
A134: PVC tlak. oblouk 90° - PN 10
C135: 3645703 | D135: PVC tlak. oblouk 90° - PN 10 | E135: 50 | F135: PN 10 | K135: 459.00 Kč | L135: 0.00 Kč | M135: 0 | N135: 459.00 Kč | O135: 0.00 Kč
C136: 3638308 | D136: PVC tlak. oblouk 90° - PN 10 | E136: 63 | F136: PN 10 | K136: 1,026.00 Kč | L136: 0.00 Kč | M136: 0 | N136: 1,026.00 Kč | O136: 0.00 Kč
C137: 3639002 | D137: PVC tlak. oblouk 90° - PN 10 | E137: 75 | F137: PN 10 | K137: 1,149.00 Kč | L137: 0.00 Kč | M137: 0 | N137: 1,149.00 Kč | O137: 0.00 Kč
C138: 3639703 | D138: PVC tlak. oblouk 90° - PN 10 | E138: 90 | F138: PN 10 | K138: 1,327.00 Kč | L138: =$K138*$J138 -> 0.00 Kč | M138: =$M$3 -> 0 | N138: =$K138-($K138/100*$M138) -> 1,327.00 Kč | O138: =L138-(L138/100*M138) -> 0.00 Kč
C139: 3640400 | D139: PVC tlak. oblouk 90° - PN 10 | E139: 110 | F139: PN 10 | K139: 1,399.00 Kč | L139: 0.00 Kč | M139: 0 | N139: 1,399.00 Kč | O139: 0.00 Kč
C140: 3641104 | D140: PVC tlak. oblouk 90° - PN 10 | E140: 125 | F140: PN 10 | K140: 1,731.00 Kč | L140: 0.00 Kč | M140: 0 | N140: 1,731.00 Kč | O140: 0.00 Kč
C141: 3641805 | D141: PVC tlak. oblouk 90° - PN 10 | E141: 160 | F141: PN 10 | K141: 2,746.00 Kč | L141: 0.00 Kč | M141: 0 | N141: 2,746.00 Kč | O141: 0.00 Kč
C142: 3642500 | D142: PVC tlak. oblouk 90° - PN 10 | E142: 200 | F142: PN 10 | K142: 4,652.00 Kč | L142: 0.00 Kč | M142: 0 | N142: 4,652.00 Kč | O142: 0.00 Kč
C143: 3643204 | D143: PVC tlak. oblouk 90° - PN 10 | E143: 250 | F143: PN 10 | K143: 14,536.00 Kč | L143: 0.00 Kč | M143: 0 | N143: 14,536.00 Kč | O143: 0.00 Kč
C144: 3643905 | D144: PVC tlak. oblouk 90° - PN 10 | E144: 315 | F144: PN 10 | K144: 23,683.00 Kč | L144: 0.00 Kč | M144: 0 | N144: 23,683.00 Kč | O144: 0.00 Kč
C145: 3644600 | D145: PVC tlak. oblouk 90° - PN 10 | E145: 400 | F145: PN 10 | K145: 39,990.00 Kč | L145: 0.00 Kč | M145: 0 | N145: 39,990.00 Kč | O145: 0.00 Kč
A146: VDL – Tvarovky
A147: 4-D RADIUS KOLENO
C148: 1.02.063 | D148: 4-D RADIUS KOLENO | E148: 63 X 63 83° | F148: PN 10 | G148: 30 | H148: 12.11 | I148: 0.18 | K148: 351.00 Kč | L148: 0.00 Kč | M148: 0 | N148: 351.00 Kč | O148: 0.00 Kč
A150: 4-D RADIUS KOLENO
C151: 1.03.063 | D151: 4-D RADIUS KOLENO | E151: 63 X 63 90° | F151: PN 10 | G151: 30 | H151: 13.14 | I151: 0.17 | K151: 356.00 Kč | L151: 0.00 Kč | M151: 0 | N151: 356.00 Kč | O151: 0.00 Kč
A153: Koleno 90°
C154: 1.05.032 | D154: Koleno 90° | E154: 32 X 32 90° | F154: PN 10 | G154: 350 | H154: 17.7 | I154: 0.1 | K154: 71.00 Kč | L154: 0.00 Kč | M154: 0 | N154: 71.00 Kč | O154: 0.00 Kč
C155: 1.05.040 | D155: Koleno 90° | E155: 40 X 40 90° | F155: PN 10 | G155: 200 | H155: 21.29 | I155: 0.12 | K155: 96.00 Kč | L155: 0.00 Kč | M155: 0 | N155: 96.00 Kč | O155: 0.00 Kč
C156: 1.05.050 | D156: Koleno 90° | E156: 50 X 50 90° | F156: PN 10 | G156: 100 | H156: 15.16 | I156: 0.12 | K156: 141.00 Kč | L156: 0.00 Kč | M156: 0 | N156: 141.00 Kč | O156: 0.00 Kč
C157: 1.05.063 | D157: Koleno 90° | E157: 63 X 63 90° | F157: PN 10 | G157: 60 | H157: 16.5 | I157: 0.17 | K157: 216.00 Kč | L157: 0.00 Kč | M157: 0 | N157: 216.00 Kč | O157: 0.00 Kč
C158: 1.05.075 | D158: Koleno 90° | E158: 75 X 75 90° | F158: PN 10 | G158: 35 | H158: 14.07 | I158: 0.11 | K158: 282.00 Kč | L158: 0.00 Kč | M158: 0 | N158: 282.00 Kč | O158: 0.00 Kč
C159: 1.05.090 | D159: Koleno 90° | E159: 90 X 90 90° | F159: PN 10 | G159: 20 | H159: 14.44 | I159: 0.11 | K159: 546.00 Kč | L159: 0.00 Kč | M159: 0 | N159: 546.00 Kč | O159: 0.00 Kč
C160: 1.05.110 | D160: Koleno 90° | E160: 110 X 110 90° | F160: PN 12.5 | G160: 10 | H160: 13.53 | I160: 0.15 | K160: 962.00 Kč | L160: 0.00 Kč | M160: 0 | N160: 962.00 Kč | O160: 0.00 Kč
C161: 1.05.125 | D161: Koleno 90° | E161: 125 X 125 90° | F161: PN 12.5 | G161: 6 | H161: 12.15 | I161: 0.15 | K161: 1,225.00 Kč | L161: 0.00 Kč | M161: 0 | N161: 1,225.00 Kč | O161: 0.00 Kč
C162: 1.05.140 | D162: Koleno 90° | E162: 140 X 140 90° | F162: PN 12.5 | G162: 5 | H162: 16.22 | I162: 0.14 | K162: 1,921.00 Kč | L162: 0.00 Kč | M162: 0 | N162: 1,921.00 Kč | O162: 0.00 Kč
C163: 1.05.160 | D163: Koleno 90° | E163: 160 X 160 90° | F163: PN 12.5 | G163: 4 | H163: 16.77 | I163: 0.15 | K163: 2,498.00 Kč | L163: 0.00 Kč | M163: 0 | N163: 2,498.00 Kč | O163: 0.00 Kč
C164: 1.05.200 | D164: Koleno 90° | E164: 200 X 200 90° | F164: PN 12.5 | G164: 1 | H164: 7.73 | I164: 0.07 | K164: 4,682.00 Kč | L164: 0.00 Kč | M164: 0 | N164: 4,682.00 Kč | O164: 0.00 Kč
C165: 1.05.225 | D165: Koleno 90° | E165: 225 X 225 90° | F165: PN 12.5 | G165: 1 | H165: 9.93 | I165: 0.12 | K165: 6,002.00 Kč | L165: 0.00 Kč | M165: 0 | N165: 6,002.00 Kč | O165: 0.00 Kč
C166: 1.05.250 | D166: Koleno 90° | E166: 250 X 250 90° | F166: PN 12.5 | G166: 1 | H166: 13.63 | I166: 0.15 | K166: 7,562.00 Kč | L166: 0.00 Kč | M166: 0 | N166: 7,562.00 Kč | O166: 0.00 Kč
C167: 1.05.280 | D167: Koleno 90° | E167: 280 X 280 90° | F167: PN 12.5 | G167: 1 | H167: 18.91 | I167: 0.19 | K167: 12,003.00 Kč | L167: 0.00 Kč | M167: 0 | N167: 12,003.00 Kč | O167: 0.00 Kč
C168: 1.05.315 | D168: Koleno 90° | E168: 315 X 315 90° | F168: PN 12.5 | G168: 1 | H168: 31.23 | I168: 0.36 | K168: 16,323.00 Kč | L168: 0.00 Kč | M168: 0 | N168: 16,323.00 Kč | O168: 0.00 Kč
A169: Koleno 90°
C170: 1.06.032 | D170: Koleno 90° | E170: 32 X 32 | F170: PN 16 | G170: 175 | H170: 12.9 | I170: 0.0568 | K170: 94.00 Kč | L170: 0.00 Kč | M170: 0 | N170: 94.00 Kč | O170: 0.00 Kč
C171: 1.06.040 | D171: Koleno 90° | E171: 40 X 40 | F171: PN 16 | G171: 100 | H171: 12.01 | I171: 0.0568 | K171: 117.00 Kč | L171: 0.00 Kč | M171: 0 | N171: 117.00 Kč | O171: 0.00 Kč
C172: 1.06.050 | D172: Koleno 90° | E172: 50 X 50 | F172: PN 16 | G172: 80 | H172: 16.75 | I172: 0.0852 | K172: 172.00 Kč | L172: 0.00 Kč | M172: 0 | N172: 172.00 Kč | O172: 0.00 Kč
C173: 1.06.063 | D173: Koleno 90° | E173: 63 X 63 | F173: PN 16 | G173: 45 | H173: 17.4 | I173: 0.0852 | K173: 273.00 Kč | L173: 0.00 Kč | M173: 0 | N173: 273.00 Kč | O173: 0.00 Kč
C174: 1.06.075 | D174: Koleno 90° | E174: 75 X 75 | F174: PN 16 | G174: 25 | H174: 13.96 | I174: 0.0852 | K174: 383.00 Kč | L174: 0.00 Kč | M174: 0 | N174: 383.00 Kč | O174: 0.00 Kč
C175: 1.06.090 | D175: Koleno 90° | E175: 90 X 90 | F175: PN 16 | G175: 15 | H175: 14.72 | I175: 0.0852 | K175: 702.00 Kč | L175: 0.00 Kč | M175: 0 | N175: 702.00 Kč | O175: 0.00 Kč
A176: S- výhybka
C177: 1.10.032 | D177: S- výhybka | E177: 32 | F177: PN 10 | G177: 150 | H177: 12 | I177: 0.0568 | K177: 122.00 Kč | L177: 0.00 Kč | M177: 0 | N177: 122.00 Kč | O177: 0.00 Kč
C178: 1.10.040 | D178: S- výhybka | E178: 40 | F178: PN 10 | G178: 150 | H178: 18.43 | I178: 0.12 | K178: 147.00 Kč | L178: 0.00 Kč | M178: 0 | N178: 147.00 Kč | O178: 0.00 Kč
C179: 1.10.050 | D179: S- výhybka | E179: 50 | F179: PN 10 | G179: 80 | H179: 16.15 | I179: 0.11 | K179: 191.00 Kč | L179: 0.00 Kč | M179: 0 | N179: 191.00 Kč | O179: 0.00 Kč
A181: D-koleno 45°dlouhé
C182: 1.13.063 | D182: D-koleno 45°dlouhé | E182: 63 X 63 | F182: PN 10 | G182: 50 | H182: 13.19 | I182: 0.12 | K182: 316.00 Kč | L182: 0.00 Kč | M182: 0 | N182: 316.00 Kč | O182: 0.00 Kč
A184: Koleno 15°
C185: 1.14.090 | D185: Koleno 15° | E185: 90 X 90 | F185: PN 10 | G185: 25 | H185: 12.12 | I185: 0.0852 | K185: 256.00 Kč | L185: 0.00 Kč | M185: 0 | N185: 256.00 Kč | O185: 0.00 Kč
C186: 1.14.110 | D186: Koleno 15° | E186: 110 X 110 | F186: PN 12.5 | G186: 15 | H186: 13.44 | I186: 0.0852 | K186: 434.00 Kč | L186: 0.00 Kč | M186: 0 | N186: 434.00 Kč | O186: 0.00 Kč
C187: 1.14.125 | D187: Koleno 15° | E187: 125 X 125 | F187: PN 12.5 | G187: 10 | H187: 12.8 | I187: 0.0852 | K187: 566.00 Kč | L187: 0.00 Kč | M187: 0 | N187: 566.00 Kč | O187: 0.00 Kč
C188: 1.14.140 | D188: Koleno 15° | E188: 140 X 140 | F188: PN 12.5 | G188: 7 | H188: 15.39 | I188: 0.0852 | K188: 914.00 Kč | L188: 0.00 Kč | M188: 0 | N188: 914.00 Kč | O188: 0.00 Kč
C189: 1.14.160 | D189: Koleno 15° | E189: 160 X 160 | F189: PN 12.5 | G189: 6 | H189: 15.13 | I189: 0.0852 | K189: 1,129.00 Kč | L189: 0.00 Kč | M189: 0 | N189: 1,129.00 Kč | O189: 0.00 Kč
C190: 1.14.200 | D190: Koleno 15° | E190: 200 X 200 | F190: PN 12.5 | G190: 1 | H190: 4.3 | I190: 0.04 | K190: 2,258.00 Kč | L190: 0.00 Kč | M190: 0 | N190: 2,258.00 Kč | O190: 0.00 Kč
C191: 1.14.225 | D191: Koleno 15° | E191: 225 X 225 | F191: PN 12.5 | G191: 1 | H191: 5.61 | I191: 0.05 | K191: 2,569.00 Kč | L191: 0.00 Kč | M191: 0 | N191: 2,569.00 Kč | O191: 0.00 Kč
C192: 1.14.250 | D192: Koleno 15° | E192: 250 X 250 | F192: PN 12.5 | G192: 1 | H192: 7.73 | I192: 0.05 | K192: 2,883.00 Kč | L192: 0.00 Kč | M192: 0 | N192: 2,883.00 Kč | O192: 0.00 Kč
C193: 1.14.280 | D193: Koleno 15° | E193: 280 X 280 | F193: PN 12.5 | G193: 1 | H193: 9.89 | I193: 0.1 | K193: 3,505.00 Kč | L193: 0.00 Kč | M193: 0 | N193: 3,505.00 Kč | O193: 0.00 Kč
C194: 1.14.315 | D194: Koleno 15° | E194: 315 X 315 | F194: PN 12.5 | G194: 1 | H194: 13.37 | I194: 0.15 | K194: 4,201.00 Kč | L194: 0.00 Kč | M194: 0 | N194: 4,201.00 Kč | O194: 0.00 Kč
A195: Koleno 45°
C196: 1.15.032 | D196: Koleno 45° | E196: 32 X 32 | F196: PN 10 | G196: 300 | H196: 12.5 | I196: 0.0568 | K196: 62.00 Kč | L196: 0.00 Kč | M196: 0 | N196: 62.00 Kč | O196: 0.00 Kč
C197: 1.15.040 | D197: Koleno 45° | E197: 40 X 40 | F197: PN 10 | G197: 150 | H197: 11.3 | I197: 0.0568 | K197: 81.00 Kč | L197: 0.00 Kč | M197: 0 | N197: 81.00 Kč | O197: 0.00 Kč
C198: 1.15.050 | D198: Koleno 45° | E198: 50 X 50 | F198: PN 10 | G198: 150 | H198: 15.83 | I198: 0.11 | K198: 123.00 Kč | L198: 0.00 Kč | M198: 0 | N198: 123.00 Kč | O198: 0.00 Kč
C199: 1.15.063 | D199: Koleno 45° | E199: 63 X 63 | F199: PN 10 | G199: 90 | H199: 18.12 | I199: 0.14 | K199: 189.00 Kč | L199: 0.00 Kč | M199: 0 | N199: 189.00 Kč | O199: 0.00 Kč
C200: 1.15.075 | D200: Koleno 45° | E200: 75 X 75 | F200: PN 10 | G200: 50 | H200: 16.5 | I200: 0.12 | K200: 220.00 Kč | L200: 0.00 Kč | M200: 0 | N200: 220.00 Kč | O200: 0.00 Kč
C201: 1.15.090 | D201: Koleno 45° | E201: 90 X 90 | F201: PN 10 | G201: 30 | H201: 16.17 | I201: 0.17 | K201: 458.00 Kč | L201: 0.00 Kč | M201: 0 | N201: 458.00 Kč | O201: 0.00 Kč
C202: 1.15.110 | D202: Koleno 45° | E202: 110 X 110 | F202: PN 12.5 | G202: 15 | H202: 14.38 | I202: 0.17 | K202: 775.00 Kč | L202: =$K202*$J202 -> 0.00 Kč | M202: =$M$3 -> 0 | N202: =$K202-($K202/100*$M202) -> 775.00 Kč | O202: =L202-(L202/100*M202) -> 0.00 Kč
C203: 1.15.125 | D203: Koleno 45° | E203: 125 X 125 | F203: PN 12.5 | G203: 10 | H203: 15.02 | I203: 0.16 | K203: 1,047.00 Kč | L203: 0.00 Kč | M203: 0 | N203: 1,047.00 Kč | O203: 0.00 Kč
C204: 1.15.140 | D204: Koleno 45° | E204: 140 X 140 | F204: PN 12.5 | G204: 7 | H204: 16.04 | I204: 0.18 | K204: 1,731.00 Kč | L204: 0.00 Kč | M204: 0 | N204: 1,731.00 Kč | O204: 0.00 Kč
C205: 1.15.160 | D205: Koleno 45° | E205: 160 X 160 | F205: PN 12.5 | G205: 5 | H205: 16.65 | I205: 0.13 | K205: 2,028.00 Kč | L205: 0.00 Kč | M205: 0 | N205: 2,028.00 Kč | O205: 0.00 Kč
C206: 1.15.200 | D206: Koleno 45° | E206: 200 X 200 | F206: PN 12.5 | G206: 1 | H206: 5.62 | I206: 0.04 | K206: 3,698.00 Kč | L206: 0.00 Kč | M206: 0 | N206: 3,698.00 Kč | O206: 0.00 Kč
C207: 1.15.225 | D207: Koleno 45° | E207: 225 X 225 | F207: PN 12.5 | G207: 1 | H207: 7.27 | I207: 0.05 | K207: 4,849.00 Kč | L207: 0.00 Kč | M207: 0 | N207: 4,849.00 Kč | O207: 0.00 Kč
C208: 1.15.250 | D208: Koleno 45° | E208: 250 X 250 | F208: PN 12.5 | G208: 1 | H208: 10.08 | I208: 0.05 | K208: 6,137.00 Kč | L208: 0.00 Kč | M208: 0 | N208: 6,137.00 Kč | O208: 0.00 Kč
C209: 1.15.280 | D209: Koleno 45° | E209: 280 X 280 | F209: PN 12.5 | G209: 1 | H209: 13.65 | I209: 0.1 | K209: 8,873.00 Kč | L209: 0.00 Kč | M209: 0 | N209: 8,873.00 Kč | O209: 0.00 Kč
C210: 1.15.315 | D210: Koleno 45° | E210: 315 X 315 | F210: PN 12.5 | G210: 1 | H210: 19.61 | I210: 0.15 | K210: 11,608.00 Kč | L210: 0.00 Kč | M210: 0 | N210: 11,608.00 Kč | O210: 0.00 Kč
... 1564 more rows
